[Event "Reykjavik Open 2024"]
[Site "Reykjavik"]
[Date "2024.03.16"]
[Round "3.27"]
[White "Moussard, Jules"]
[Black "Ragnarsson, Dagur"]
[Result "1-0"]
[ECO "D12"]
[WhiteElo "2621"]
[BlackElo "2337"]
[Annotator "TA"]
[PlyCount "45"]
[EventDate "2024.03.12"]
[EventCountry "ISL"]
[SourceTitle "playchess.com"]
[Source "ChessBase"]
[SourceQuality "1"]
[TimeControl "40/5400+30:1800+30"]

{[%evp 11,45,25,26,14,36,23,16,14,25,5,3,6,44,45,68,62,56,52,62,72,83,77,79,75,83,111,233,231,234,227,333,315,332,312,1023,1023]} 1. c4 {[%emt 0:00:22]} c6 {[%emt 0:01:03]} 2. Nf3 {[%emt 0:01:12]} d5 {[%emt 0:00:08]} 3. e3 {[%emt 0:00:05]} Nf6 {[%emt 0:00:15]} 4. d4 {[%emt 0:01:39]} Bf5 {[%emt 0:02:31]} 5. Nc3 {[%emt 0:00:46]} e6 {[%emt 0:02:25]} 6. Nh4 {[%emt 0:00:13]} Bg6 {[%emt 0:00:13]} 7. Be2 {[%emt 0:05:47]} Nbd7 {[%emt 0:01:34]} 8. O-O {[%emt 0:04:03]} Bd6 {[%emt 0:09:24]} 9. g3 {[%emt 0:06:12] The position is equal.} dxc4 {[%emt 0:00:08]} 10. Nxg6 {[%emt 0:07:07]} hxg6 {[%emt 0:00:08]} 11. Bxc4 {[%emt 0:00:27]} Qa5 {[%emt 0:01:48]} 12. e4 {[%emt 0:11:55] Hoping for e5.} b5 {[%emt 0:03:32][%cal Bb7b5,Bb5b4][%mdl 32]} 13. Bd3 {[%emt 0:01:48] Strongly threatening e5.} b4 {[%emt 0:02:39]} 14. Nb1 {[%emt 0:03:31][%cal Bc3b1,Bb1d2,Bd2c4,Bc4e5][%mdl 32] Black must now prevent e5.} e5 {[%emt 0:03:23]} 15. Nd2 {[%emt 0:00:54]} exd4 {[%emt 0:04:34] [#]} 16. Nc4 {[%emt 0:00:18] Inhibits Ne5.} Qc5 {[%emt 0:06:27]} 17. Bd2 {[%emt 0:04:06] Threatens to win with Re1.} Be7 {[%emt 0:02:55]} 18. Re1 {[%emt 0:05:09] e5 would now be deadly.} Ne5 {[%emt 0:14:07] [#] Loses the game.} (18... Qh5 $16 19. Qxh5 gxh5) 19. Bxb4 $1 $18 {[%emt 0:01:45][%mdl 512]} Qxb4 {[%emt 0:00:22]} 20. Nxe5 {[%emt 0:00:30]} Qc5 {[%emt 0:19:49] [#]} (20... Nd7 {might work better.}) 21. Qa4 $1 {[%emt 0:05:13]} Kf8 {[%emt 0:04:45]} (21... O-O 22. Nxc6) 22. f4 {[%emt 0:02:59][%cal Oa4b3] aiming for Qb3!} ({Don't play} 22. Qxc6 Re8 $18) 22... Rc8 $2 {[%emt 0:02:18]} (22... Rh5 23. Rec1 (23. Qxc6 Qxc6 24. Nxc6 Rc5 $18) (23. Nxc6 Ng4 $18) 23... Rxe5 24. Rxc5 (24. fxe5 Qxe5 25. Rxc6 Qg5 $16) 24... Rxc5) 23. Qb3 {[%emt 0:00:28] Weighted Error Value: White=0.04 (flawless) /Black=0.26 (precise) .  Mistake:       	---       	Black=3      Inaccurate:     	---       	Black=1      OK:         	White=8     	Black=5      Best:        	White=2     	---        Brilliant:      	White=1     	---} 1-0

[Event "Reykjavik Open 2024"]
[Site "Reykjavik"]
[Date "2024.03.16"]
[Round "3.28"]
[White "Cieslak, Patryk"]
[Black "Cornette, Matthieu"]
[Result "1-0"]
[ECO "B32"]
[WhiteElo "2325"]
[BlackElo "2575"]
[Annotator "TA"]
[PlyCount "135"]
[EventDate "2024.03.12"]
[EventCountry "ISL"]
[SourceTitle "playchess.com"]
[Source "ChessBase"]
[SourceQuality "1"]
[TimeControl "40/5400+30:1800+30"]

{[%evp 50,135,64,60,52,50,58,20,36,-8,3,0,0,0,0,0,14,14,62,16,23,24,20,29,22,24,33,0,0,0,0,0,0,0,0,0,0,-8,0,0,0,0,4,4,8,2,4,0,27,27,282,282,281,253,279,271,237,174,180,170,322,310,310,310,607,607,607,607,598,606,585,535,607,607,577,563,533,520,1411,1396,1372,406,4775,4770,29984,29985,29986,29987]} 1. e4 {[%emt 0:00:03]} c5 {[%emt 0:00:09]} 2. Nf3 {[%emt 0:00:03]} Nc6 {[%emt 0:00:11]} 3. d4 {[%emt 0:00:11]} cxd4 {[%emt 0:00:39]} 4. Nxd4 {[%emt 0:00:04]} e5 {[%emt 0:00:45]} 5. Nb5 {[%emt 0:00:20]} d6 {[%emt 0:00:05]} 6. c4 {[%emt 0:00:31]} g6 {[%emt 0:01:13] B32: Sizilianisch (Löwenthal-Variante).} 7. N1c3 {[%emt 0:03:48]} a6 {[%emt 0:00:26]} 8. Na3 {[%emt 0:00:02]} Be6 {[%emt 0:01:00]} 9. Be3 {[%emt 0:04:47]} Bg7 {[%emt 0:02:24]} 10. Nc2 {[%emt 0:05:18]} Nf6 {[%emt 0:03:51]} 11. Be2 {[%emt 0:03:11]} Rc8 {[%emt 0:00:30]} 12. O-O {[%emt 0:04:23]} O-O {[%emt 0:01:35]} 13. Rc1 {[%emt 0:06:11] 13.b3 wird beliebter.} Ne7 {[%emt 0:06:18]} 14. Na3 {[%emt 0:05:17]} Nc6 {[%emt 0:00:44]} 15. Nc2 {[%emt 0:03:04]} Na5 {[%emt 0:05:25]} 16. b3 {[%emt 0:03:25]} b5 {[%emt 0:00:46]} 17. Nd5 {[%emt 0:00:54]} Bxd5 {[%emt 0:03:20]} 18. exd5 {[%emt 0:00:07]} bxc4 {[%emt 0:01:01]} 19. b4 {[%emt 0:02:10]} Nb7 {[%emt 0:00:11]} 20. Na3 {[%emt 0:00:33]} a5 {[%emt 0:05:28]} 21. b5 {[%emt 0:12:14]} c3 {[%emt 0:00:12]} 22. Nc4 {[%emt 0:02:37]} Nd7 $146 {[%emt 0:01:05]} ({Predecessor:} 22... Ng4 23. Bb6 Qh4 24. h3 Rxc4 25. Bxc4 Nxf2 26. Rxf2 Qxc4 27. Qe2 Rc8 28. Qxc4 Rxc4 29. Rfc2 e4 30. Bf2 Rb4 {0-1 Djukic,N (2514)-Perunovic,M (2554) Belgrade Gligoric Trophy KO rapid 2023 (2.1)}) 23. Rxc3 {[%emt 0:05:49]} f5 {[%emt 0:02:57]} 24. Rc1 {[%emt 0:05:13]} f4 {[%emt 0:10:19]} 25. Bd2 {[%emt 0:00:57]} Nf6 {[%emt 0:00:07]} (25... e4 26. Bg4 $16) 26. Qe1 {[%emt 0:05:08]} Ra8 {[%emt 0:09:11]} 27. a4 {[%emt 0:02:29]} Ne4 {[%emt 0:02:02]} 28. b6 {[%emt 0:06:10]} Nec5 {[%emt 0:08:06]} 29. Nxa5 {[%emt 0:02:14]} ({Viel schlechter ist} 29. Bxa5 Nxa5 (29... Nxa4 30. Ra1 $16) 30. Nxa5 Qxb6 $15) 29... Qxb6 {[%emt 0:04:42]} 30. Nxb7 {[%emt 0:02:28]} Qxb7 {[%emt 0:01:26]} 31. Bb5 {[%emt 0:00:09]} f3 {[%emt 0:08:10]} 32. gxf3 {[%emt 0:03:59]} Qc8 {[%emt 0:00:09]} (32... Qxd5 $2 33. Bc4 $18) (32... Rxf3 33. Bc6 Qa6 34. Bxa8 Qxa8 35. Qe2 $16) 33. Qe3 {[%emt 0:01:22]} (33. Qe2 {scheint wilder zu sein.} Qh3 34. Rxc5 dxc5 35. d6) 33... Rf4 {[%emt 0:01:15]} (33... Qh3 $11 34. Rxc5 dxc5) 34. Qe2 {[%emt 0:03:12]} (34. Rxc5 $1 $14 dxc5 35. d6) 34... Rh4 $11 {[%emt 0:01:37]} 35. Rc4 $1 {[%emt 0:01:40]} Qh3 {[%emt 0:08:16]} 36. Rxh4 {[%emt 0:00:14]} Qxh4 {[%emt 0:00:02]} 37. Qe3 {[%emt 0:04:17]} e4 $1 {[%emt 0:04:40]} 38. Qg5 {[%emt 0:02:25]} Qxg5+ {[%emt 0:01:03]} 39. Bxg5 {[%emt 0:00:02]} exf3 {[%emt 0:00:47]} 40. Bf4 {[%emt 0:01:44]} Nxa4 {[%emt 0:04:06]} 41. Bc6 {[%emt 0:03:09]} Ra6 {[%emt 0:00:17]} 42. Bxd6 {[%emt 0:01:35]} Nc3 {[%emt 0:00:04]} 43. Bc7 {[%emt 0:06:30]} Ne2+ {[%emt 0:07:26]} 44. Kh1 {[%emt 0:00:30]} Nd4 {[%emt 0:00:04]} 45. Bd7 {[%emt 0:05:01]} Ra7 {[%emt 0:07:46]} 46. d6 {[%emt 0:00:16]} Be5 {[%emt 0:00:16]} 47. Bc8 {[%emt 0:01:33]} Ra4 {[%emt 0:02:21]} 48. Rd1 {[%emt 0:04:16]} Nb5 {[%emt 0:09:55]} 49. Bd7 {[%emt 0:02:06]} Rb4 $2 {[%emt 0:03:36][%mdl 8192]} (49... Rd4 $1 $11 {und Schwarz ist OK.} 50. Rxd4 Nxd4) 50. Ba5 $18 {[%emt 0:02:08]} Rd4 {[%emt 0:00:26]} 51. Re1 {[%emt 0:02:13]} Bxd6 {[%emt 0:02:38]} 52. Bxb5 {[%emt 0:00:32]} Rh4 {[%emt 0:00:02]} 53. Bc6 {[%emt 0:02:19]} Rxh2+ {[%emt 0:00:56]} 54. Kg1 {[%emt 0:00:01]} Rg2+ $2 {[%emt 0:00:09]} (54... Rh5 {ist wohl besser.}) 55. Kf1 $18 {[%emt 0:00:46]} Bc5 {[%emt 0:00:03]} 56. Re2 {[%emt 0:02:26]} (56. Bxf3 $2 {zu gefräßig.} Rxf2+ 57. Kg1 Rxf3+ 58. Kg2 Rf2+ 59. Kh3 h5 $19) 56... fxe2+ $2 {[%emt 0:03:26]} (56... Rg5) 57. Kxg2 $18 {[%emt 0:00:03]} Bd4 {[%emt 0:01:40]} 58. Bf3 {[%emt 0:00:16]} Kg7 {[%emt 0:00:02]} 59. Bxe2 {[%emt 0:00:06]} Kf6 {[%emt 0:00:05]} 60. Bd8+ {[%emt 0:00:46]} Kg7 {[%emt 0:00:30]} 61. Kg3 {[%emt 0:00:07]} Be5+ {[%emt 0:00:21]} 62. Kf3 {[%emt 0:00:24]} Bd4 {[%emt 0:00:10]} 63. Bg5 {[%emt 0:00:41]} h5 {[%emt 0:01:37]} (63... Bb6 $142 64. Be3 Bc7) 64. Be3 $18 {[%emt 0:00:29]} Bf6 {[%emt 0:00:14]} 65. Ke4 {[%emt 0:00:06]} (65. Kf4 $142 Kf7 66. Bb6) 65... Kh7 {[%emt 0:01:30]} (65... Bd8 $142 66. f4 Bf6) 66. Kd5 $18 {[%emt 0:00:08]} Be7 {[%emt 0:01:08]} 67. Ke6 {[%emt 0:00:15]} Bb4 {[%emt 0:00:24]} 68. Kf7 {[%emt 0:00:14]} 1-0

[Event "Reykjavik Open 2024"]
[Site "Reykjavik"]
[Date "2024.03.16"]
[Round "3.29"]
[White "Pultinevicius, Paulius"]
[Black "Mendes Aaron Reeve"]
[Result "1-0"]
[ECO "A07"]
[WhiteElo "2575"]
[BlackElo "2309"]
[Annotator "TA"]
[PlyCount "73"]
[EventDate "2024.03.12"]
[EventCountry "ISL"]
[SourceTitle "playchess.com"]
[Source "ChessBase"]
[SourceQuality "1"]
[TimeControl "40/5400+30:1800+30"]

{[%evp 9,72,0,29,0,-4,-4,0,6,0,-18,-6,-25,-4,-6,1,-63,13,15,42,40,57,64,113,112,95,86,161,147,187,136,179,176,239,179,240,250,331,326,395,272,563,473,871,867,827,735,832,837,1445,1320,1491,1445,29987,1894,2324,2238,2122,2133,29996,29997,29997,29998,29998,29999,29999]} 1. Nf3 {[%emt 0:00:04]} d5 {[%emt 0:00:10]} 2. g3 {[%emt 0:00:06]} Nd7 {[%emt 0:00:25]} 3. Bg2 {[%emt 0:00:19]} e5 {[%emt 0:00:36]} 4. d3 {[%emt 0:00:27]} Ngf6 {[%emt 0:01:00]} 5. O-O {[%emt 0:00:09]} Bd6 {[%emt 0:00:22]} 6. Nc3 {[%emt 0:06:52]} c6 {[%emt 0:01:49]} 7. e4 {[%emt 0:00:12]} d4 {[%emt 0:00:29]} 8. Ne2 {[%emt 0:00:09] The position is equal.} O-O {[%emt 0:00:10]} 9. Ne1 {[%emt 0:03:32]} c5 {[%emt 0:03:15]} 10. h3 {[%emt 0:01:33][%cal Bh2h3,Bh3h4,Bh4g5][%mdl 32]} Qc7 {[%emt 0:00:57]} 11. f4 {[%emt 0:01:10]} b6 {[%emt 0:01:23]} 12. f5 {[%emt 0:09:45]} (12. c3 $11) 12... Ne8 {[%emt 0:04:44]} (12... c4 $15) 13. g4 $11 {[%emt 0:02:17]} f6 {[%emt 0:01:17]} 14. h4 {[%emt 0:03:40]} Be7 {[%emt 0:07:03]} 15. g5 {[%emt 0:03:54]} fxg5 {[%emt 0:03:13] Black is now going downhill.} (15... Nd6 $14) 16. hxg5 $16 {[%emt 0:00:09]} Qd8 {[%emt 0:00:13]} 17. Nf3 {[%emt 0:01:42]} Ba6 {[%emt 0:05:06]} (17... c4 $16) 18. Rf2 {[%emt 0:01:57]} Nd6 {[%emt 0:03:52] [#]} 19. Bf1 {[%emt 0:02:31]} ({White should try} 19. Bh3 $1 $18) 19... Qe8 {[%emt 0:04:30]} 20. Ng3 {[%emt 0:00:57]} Rc8 {[%emt 0:01:24]} (20... g6 {keeps fighting.} 21. Bh3 Rf7) 21. b3 {[%emt 0:03:25]} Bd8 {[%emt 0:05:26]} (21... Rf7 $142 22. Bh3 Rf8) 22. Nh4 {[%emt 0:02:18]} b5 {[%emt 0:03:40]} 23. a4 {[%emt 0:01:03]} Bb7 {[%emt 0:03:39]} 24. Be2 {[%emt 0:02:04] Threatens to win with Bh5.} Bb6 $2 {[%emt 0:05:01]} (24... g6 {is a better defense.} 25. axb5 Kg7 26. Rxa7 c4 27. bxc4 Bb6) 25. axb5 {[%emt 0:01:02]} Nxb5 {[%emt 0:00:10]} (25... g6 $142 26. Bg4 Bc7) 26. Bh5 $18 {[%emt 0:00:08]} Qd8 {[%emt 0:03:51]} 27. Qg4 {[%emt 0:00:11] Strongly threatening f6.} Rc6 {[%emt 0:06:56]} 28. f6 {[%emt 0:00:35]} Nd6 {[%emt 0:05:22]} 29. Ngf5 {[%emt 0:05:18]} Nxf5 {[%emt 0:04:48]} 30. Nxf5 {[%emt 0:00:05]} g6 {[%emt 0:02:41] [#]} 31. Bxg6 $1 {[%emt 0:00:23][%mdl 512]} hxg6 {[%emt 0:00:15]} 32. Nh6+ {[%emt 0:00:04]} Kh7 {[%emt 0:00:20]} 33. Qh4 {[%emt 0:00:04][%cal Oa1a7] Rxa7! is the strong threat.} Qc7 {[%emt 0:01:24]} 34. Nf7+ {[%emt 0:00:08] White mates.} Kg8 {[%emt 0:00:23][%cal Bh7g8,Bg8f7,Bf7e6][%mdl 32]} 35. Qh8+ {[%emt 0:00:06]} Kxf7 {[%emt 0:00:10]} 36. Qh7+ {[%emt 0:00:04]} Ke6 {[%emt 0:00:09]} 37. Qe7# {[%emt 0:00:06] Weighted Error Value: White=0.24 (precise) /Black=0.96.  Mistake:       	White=2     	Black=7      Inaccurate:     	White=1     	Black=3      OK:         	White=7     	Black=3      Best:        	White=1     	---} 1-0

[Event "Reykjavik Open 2024"]
[Site "Reykjavik"]
[Date "2024.03.16"]
[Round "3.30"]
[White "Galperin, Platon"]
[Black "Papadiamandis, Elliot"]
[Result "1/2-1/2"]
[ECO "B22"]
[WhiteElo "2555"]
[BlackElo "2302"]
[Annotator "TA"]
[PlyCount "73"]
[EventDate "2024.03.12"]
[EventCountry "ISL"]
[SourceTitle "playchess.com"]
[Source "ChessBase"]
[SourceQuality "1"]
[TimeControl "40/5400+30:1800+30"]

{[%evp 9,73,-1,-1,15,13,16,21,-1,23,30,37,30,79,93,84,78,85,96,99,118,102,114,111,116,122,126,225,136,109,131,166,143,160,134,125,124,163,172,202,212,210,218,229,233,233,238,290,295,338,319,300,268,266,270,277,269,271,221,277,279,302,190,233,0,0,0]} 1. e4 {[%emt 0:00:14][%cal Be2e4,Be4e5][%mdl 32]} c5 {[%emt 0:00:30]} 2. c3 {[%emt 0:00:13]} Nf6 {[%emt 0:02:47]} 3. e5 {[%emt 0:00:09]} Nd5 {[%emt 0:00:05]} 4. Nf3 {[%emt 0:00:13]} e6 {[%emt 0:04:58]} 5. a3 {[%emt 0:01:31]} d6 {[%emt 0:02:24]} 6. d4 {[%emt 0:00:06]} Nc6 {[%emt 0:04:58][%cal Bb8c6,Bc6d8,Bd8f7][%mdl 32]} 7. c4 {[%emt 0:01:15]} Nc7 {[%emt 0:00:36]} 8. dxc5 {[%emt 0:08:01]} dxe5 {[%emt 0:21:10]} 9. Qxd8+ {[%emt 0:00:07]} Nxd8 {[%emt 0:00:39]} 10. Be3 {[%emt 0:00:37]} f6 {[%emt 0:15:00]} (10... e4 $1 $11 {might be stronger.} 11. Nfd2 f5) 11. Nc3 $16 {[%emt 0:00:50]} Bd7 {[%emt 0:02:53]} 12. b4 $36 {[%emt 0:07:37][%mdl 2048] Keeping Black busy.} Nf7 {[%emt 0:01:18]} 13. Be2 {[%emt 0:01:53]} Be7 {[%emt 0:03:14]} 14. Nd2 {[%emt 0:09:32][%cal Bf3d2,Bd2b3,Bb3a5][%mdl 32]} f5 {[%emt 0:03:32]} 15. Nb3 {[%emt 0:00:23]} O-O {[%emt 0:06:41]} 16. O-O-O {[%emt 0:06:20]} Rfd8 {[%emt 0:00:29]} 17. Na5 {[%emt 0:02:02] White is much more active.} Rab8 {[%emt 0:00:46] [#]} (17... Bc6 $16 18. b5 Rxd1+ 19. Kxd1 (19. Rxd1 Bxg2 20. f3 e4 $16) 19... Bxg2) 18. c6 $1 {[%emt 0:00:53][%mdl 512]} Bxc6 {[%emt 0:04:12]} 19. Bxa7 {[%emt 0:05:42]} Rbc8 {[%emt 0:02:00]} 20. Nxc6 {[%emt 0:13:45]} bxc6 {[%emt 0:00:26]} 21. Bb6 {[%emt 0:00:52]} e4 {[%emt 0:04:46]} 22. Kb2 {[%emt 0:04:47]} Kf8 {[%emt 0:06:12]} 23. Kb3 {[%emt 0:00:45]} Ne5 {[%emt 0:00:43]} 24. Rxd8+ {[%emt 0:01:55]} Bxd8 {[%emt 0:00:02]} 25. Rd1 {[%emt 0:00:11][%cal Od1d8] Prevents Nd7. Strongly threatening Rxd8+!} Ke8 {[%emt 0:00:36]} 26. a4 {[%emt 0:05:01][%cal Ba3a4,Ba4a5][%mdl 32]} Nd7 {[%emt 0:02:55] [#]} 27. a5 {[%emt 0:01:17]} Rb8 {[%emt 0:02:01]} 28. Na4 {[%emt 0:02:31]} c5 {[%emt 0:06:29]} 29. b5 {[%emt 0:02:45]} (29. bxc5 Na6 30. f3 Ndxc5+ 31. Nxc5 Nxc5+ 32. Kb4 Bxb6 (32... exf3 $2 33. Rxd8+ Rxd8 34. Bxf3 $18) 33. axb6 Nd7) (29. Bxc5 Nxc5+ 30. Nxc5 Be7 $18) (29. Nxc5 Nxb6 30. axb6 Rxb6 $18) 29... Nxb6 {[%emt 0:00:02]} 30. axb6 {[%emt 0:06:17]} Na8 {[%emt 0:00:01]} 31. Nxc5 {[%emt 0:00:15]} Bxb6 {[%emt 0:00:57]} 32. Nxe6 {[%emt 0:00:09]} Kf7 {[%emt 0:00:22]} 33. Rd6 {[%emt 0:05:09] And now c5 would win.} Bxf2 {[%emt 0:01:05]} 34. c5 {[%emt 0:01:05]} Ke7 {[%emt 0:00:46][%cal Of2c5]} 35. Ra6 {[%emt 0:00:34][%cal Oa6c6]} g6 {[%emt 0:00:11]} 36. Kc4 $2 {[%emt 0:02:34]} ({Better is} 36. Rc6 $18) 36... Nb6+ $1 $11 {[%emt 0:00:09]} 37. Rxb6 {[%emt 0:05:09] Weighted Error Value: White=0.22 (precise) /Black=0.19 (very precise) .  Missed win:     	White=1     	---        Mistake:       	---       	Black=2      Inaccurate:     	White=2     	Black=1      OK:         	White=19    	Black=7      Best:        	White=2     	Black=1      Strong:       	---       	Black=1} (37. cxb6 $2 {loses.} Kxe6 38. Ra7 (38. b7+ $2 Ke5 $19) 38... h5 $17 (38... Rxb6 39. Rxh7 Rd6 40. Kb3 $17)) 1/2-1/2

[Event "Reykjavik Open 2024"]
[Site "Reykjavik"]
[Date "2024.03.16"]
[Round "3.31"]
[White "Bjornsson, Sigurbjorn"]
[Black "Can, Emre"]
[Result "0-1"]
[ECO "B77"]
[WhiteElo "2305"]
[BlackElo "2551"]
[Annotator "TA"]
[PlyCount "82"]
[EventDate "2024.03.12"]
[EventCountry "ISL"]
[SourceTitle "playchess.com"]
[Source "ChessBase"]
[SourceQuality "1"]
[TimeControl "40/5400+30:1800+30"]

{[%evp 23,82,0,0,-25,0,-53,-20,-133,-127,-130,-120,-132,-147,-152,-148,-137,-151,-219,-193,-183,-181,-155,-172,-175,-146,-237,-181,-239,-237,-230,-239,-229,-209,-204,-188,-201,-195,-208,-196,-204,-199,-270,-261,-441,-452,-450,-413,-430,-413,-446,-440,-505,-491,-564,-531,-541,-545,-590,-536,-602,-571]} 1. e4 {[%emt 0:05:07]} c5 {[%emt 0:02:06]} 2. Nf3 {[%emt 0:02:42]} Nc6 {[%emt 0:00:20]} 3. d4 {[%emt 0:00:15]} cxd4 {[%emt 0:00:08]} 4. Nxd4 {[%emt 0:00:03]} g6 {[%emt 0:00:10]} 5. Nc3 {[%emt 0:00:11]} Bg7 {[%emt 0:00:12]} 6. Be3 {[%emt 0:00:05]} Nf6 {[%emt 0:00:10]} 7. Bc4 {[%emt 0:00:13]} O-O {[%emt 0:00:23]} 8. Bb3 {[%emt 0:00:17]} d6 {[%emt 0:00:29]} 9. f3 {[%emt 0:00:19]} Qa5 {[%emt 0:00:23]} 10. Qd2 {[%emt 0:01:14]} Nxd4 {[%emt 0:00:32]} 11. Bxd4 {[%emt 0:00:19]} Be6 {[%emt 0:00:09]} 12. Bxe6 {[%emt 0:12:10]} fxe6 {[%emt 0:00:14]} 13. h4 {[%emt 0:00:04]} Rac8 {[%emt 0:05:17]} 14. h5 {[%emt 0:05:00]} e5 {[%emt 0:10:21]} (14... gxh5 15. O-O-O $11) 15. h6 {[%emt 0:04:00]} (15. Bf2 $11) 15... Bxh6 $1 $17 {[%emt 0:02:12]} 16. Rxh6 {[%emt 0:01:22]} exd4 {[%emt 0:00:09]} 17. Qxd4 {[%emt 0:02:29]} Qg5 {[%emt 0:01:29][%csl LRg2,LRh6]} 18. Rh1 {[%emt 0:09:34]} (18. Qd2 $2 Qg3+ 19. Kf1 Ng4) 18... Qxg2 {[%emt 0:01:01]} 19. O-O-O {[%emt 0:00:13]} Qxf3 {[%emt 0:00:18]} 20. Rdf1 {[%emt 0:13:20]} (20. e5 $17 {might work better.} dxe5 21. Qxe5) 20... Qg4 {[%emt 0:09:45]} 21. Rhg1 {[%emt 0:20:49]} Qd7 {[%emt 0:16:09]} 22. Qxa7 {[%emt 0:00:55]} Rc5 {[%emt 0:01:33]} 23. Qb6 {[%emt 0:02:50]} Re5 {[%emt 0:05:26]} 24. Qe3 {[%emt 0:02:55]} (24. Rf5 $17) 24... Rf7 {[%emt 0:01:33]} 25. Qf4 {[%emt 0:06:43]} (25. Rd1 {was worth a try.}) 25... Qe6 {[%emt 0:00:23][%cal Rf6e4]} 26. Qh4 {[%emt 0:00:43]} Kg7 {[%emt 0:05:28]} ({Weaker is} 26... Nxe4 27. Rxf7 Qxf7 (27... Nf6 $2 28. Rxf6 Qxf6 29. Qh6 $18) 28. Nxe4 Qxa2 29. Ng5 $11) 27. Re1 {[%emt 0:00:45]} Rh5 {[%emt 0:01:25]} 28. Qf2 {[%emt 0:01:13]} Qe5 {[%emt 0:01:23][%cal Of6e4] ...Nxe4! is the strong threat.} 29. Qb6 {[%emt 0:00:29]} e6 {[%emt 0:01:04]} 30. Rd1 {[%emt 0:01:54]} Nxe4 {[%emt 0:03:11]} 31. Nxe4 {[%emt 0:01:15]} Qxe4 {[%emt 0:00:47]} 32. Rxd6 {[%emt 0:01:12]} (32. Qxd6 $142 Rd5 33. Qg3) 32... Rh2 $19 {[%emt 0:04:44]} 33. Qc5 {[%emt 0:01:38] [#]} (33. Qd4+ Qxd4 34. Rxd4) 33... Rxc2+ $3 {[%emt 0:01:26][%mdl 512]} 34. Qxc2 {[%emt 0:00:51]} Qe3+ {[%emt 0:00:05]} 35. Kb1 {[%emt 0:00:49]} Qxg1+ {[%emt 0:00:07][%mdl 4096] Endgame. KQR-KQR} 36. Rd1 {[%emt 0:00:10]} Qg5 {[%emt 0:00:42] Black is clearly winning.} 37. Qb3 {[%emt 0:00:28]} h5 {[%emt 0:00:58]} 38. a3 {[%emt 0:01:48]} h4 {[%emt 0:01:08]} 39. Qc3+ {[%emt 0:00:26]} Qf6 {[%emt 0:00:18]} 40. Qc8 {[%emt 0:00:17] Inhibits Qxc3.} e5 {[%emt 0:01:50] [#] Threatens to win with ...Qf5+.} 41. Ka1 {[%emt 0:30:33]} e4 {[%emt 0:32:40] White got outplayed after the opening.   Weighted Error Value: White=0.43/Black=0.11 (very precise) .  Mistake:       	White=7     	---        Inaccurate:     	---       	Black=1      OK:         	White=10    	Black=12     Best:        	White=1     	---        Strong:       	---       	Black=1      Brilliant:      	---       	Black=1} 0-1

[Event "Reykjavik Open 2024"]
[Site "Reykjavik"]
[Date "2024.03.16"]
[Round "3.32"]
[White "Xu, Yuanyuan"]
[Black "Adhiban, B.."]
[Result "0-1"]
[ECO "D31"]
[WhiteElo "2288"]
[BlackElo "2541"]
[Annotator "RC"]
[PlyCount "70"]
[EventDate "2024.03.12"]
[EventCountry "ISL"]
[SourceTitle "playchess.com"]
[Source "ChessBase"]
[SourceQuality "1"]
[TimeControl "40/5400+30:1800+30"]

1. d4 {[%emt 0:00:02]} d5 {[%emt 0:00:04]} 2. c4 {[%emt 0:00:39]} e6 {[%emt 0:00:05]} 3. Nc3 {[%emt 0:00:12]} c6 {[%emt 0:02:21]} 4. cxd5 {[%emt 0:04:10]} exd5 {[%emt 0:00:05]} 5. Bf4 {[%emt 0:00:13]} Bd6 {[%emt 0:13:11]} 6. Bxd6 {[%emt 0:02:25]} Qxd6 {[%emt 0:00:02]} 7. e3 {[%emt 0:00:09]} Bf5 {[%emt 0:00:08]} 8. g4 {[%emt 0:03:51]} Be6 {[%emt 0:01:55]} 9. Bd3 {[%emt 0:04:13]} Nd7 {[%emt 0:00:16]} 10. f4 {[%emt 0:04:57]} f6 {[%emt 0:04:11]} 11. f5 {[%emt 0:09:06]} Bf7 {[%emt 0:00:02]} 12. Nge2 {[%emt 0:00:18]} Ne7 {[%emt 0:03:42]} 13. Qc2 {[%emt 0:08:56]} O-O {[%emt 0:06:00]} 14. Nf4 {[%emt 0:12:24]} c5 {[%emt 0:11:37]} 15. O-O {[%emt 0:00:54]} a6 {[%emt 0:07:58]} 16. Qg2 {[%emt 0:07:09]} Nc6 {[%emt 0:07:34]} 17. Nce2 {[%emt 0:11:03]} Rfe8 {[%emt 0:01:32]} 18. Rf3 {[%emt 0:03:21]} Nb4 {[%emt 0:11:04]} 19. Bb1 {[%emt 0:04:18]} cxd4 {[%emt 0:02:14]} 20. exd4 {[%emt 0:00:32]} Rac8 {[%emt 0:00:17]} 21. Nc3 {[%emt 0:10:25]} Re1+ {[%emt 0:07:45]} 22. Rf1 {[%emt 0:00:12]} Qxf4 {[%emt 0:01:02]} 23. Rxe1 {[%emt 0:00:11]} Qxd4+ {[%emt 0:00:05]} 24. Kh1 {[%emt 0:00:34]} Ne5 {[%emt 0:05:30]} 25. h3 {[%emt 0:01:40]} h5 {[%emt 0:04:56]} 26. Rd1 {[%emt 0:05:23]} Qe3 {[%emt 0:00:36]} 27. a3 {[%emt 0:00:45]} hxg4 {[%emt 0:04:52]} 28. hxg4 {[%emt 0:01:57]} Rc4 {[%emt 0:01:23]} 29. Be4 {[%emt 0:01:55]} Nbc6 {[%emt 0:01:39]} 30. Bxd5 {[%emt 0:01:04]} Rxg4 {[%emt 0:00:54]} 31. Bxf7+ {[%emt 0:00:05]} Kxf7 {[%emt 0:00:46]} 32. Qd5+ {[%emt 0:00:32]} Kf8 {[%emt 0:00:08]} 33. Rd2 {[%emt 0:00:31]} Nf3 {[%emt 0:01:28]} 34. Qd6+ {[%emt 0:01:57]} Kg8 {[%emt 0:00:18]} 35. Qd5+ {[%emt 0:00:53]} Kh7 {[%emt 0:00:44]} 0-1